bitfinex/quotes_SOLUSD_20251118
["timestamp","ask_amount","ask_price","bid_price","bid_amount"]
[1763428744451,18.12096,132.43,132.4,5.43606081]
[1763428744732,9.06950763,132.41,132.37,8.20208231]
[1763428744936,9.06950763,132.38,132.37,8.20208231]
[1763428745147,9.06950763,132.38,132.33,8.40208231]
[1763428745148,18.12096,132.36,132.33,8.40208231]
[1763428745435,18.12096,132.39,132.35,8.20208231]
[1763428745742,9.06950763,132.38,132.36,8.20208231]
[1763428745927,9.06950763,132.38,132.37,9.78882769]
[1763428746444,9.06950763,132.38,132.35,8.20208231]
[1763428746617,9.06950763,132.37,132.35,9.78882769]
[1763428746818,9.06950763,132.37,132.35,10.44882769]
[1763428747019,9.06950763,132.38,132.35,10.44882769]
[1763428747718,9.06950763,132.37,132.35,10.44882769]
[1763428747913,18.12096,132.39,132.35,9.78882769]
[1763428748117,1.32365581,157.5,132.35,9.78882769]
[1763428748118,9.06950763,132.4,132.37,9.78882769]
[1763428748352,9.06950763,132.4,132.37,10.44882769]
[1763428748519,9.06950763,132.43,132.39,18.85833532]
[1763428748719,9.06950763,132.44,132.4,0.66]
[1763428749045,9.06950763,132.44,132.4,5.24]
[1763428749223,0.67,132.46,132.4,14.30950763]
[1763428749418,9.06950763,132.45,132.4,14.30950763]
[1763428749625,9.06950763,132.44,132.4,5.24]
[1763428749843,9.06950763,132.44,132.4,14.30950763]
[1763428750045,9.06950763,132.45,132.42,9.78882769]
[1763428750244,9.06950763,132.46,132.42,18.85833532]
[1763428750554,163.6,132.53,132.42,18.85833532]
[1763428750555,9.06950763,132.47,132.44,9.78882769]
[1763428750926,0.1,132.53,132.43,9.72950763]
[1763428750927,9.06950763,132.48,132.46,9.78882769]
[1763428752317,9.06950763,132.47,132.44,9.78882769]
[1763428752521,9.06950763,132.46,132.44,9.78882769]
[1763428752946,27.86046763,132.45,132.39,8.89208231]
[1763428753117,9.06950763,132.41,132.37,8.20208231]
[1763428753321,9.06950763,132.39,132.37,0.69]
[1763428753560,9.06950763,132.4,132.38,9.78882769]
[1763428754058,9.06950763,132.4,132.37,9.78882769]
[1763428754268,9.06950763,132.41,132.38,0.69]
[1763428754629,9.06950763,132.42,132.38,8.89208231]
[1763428754950,9.06950763,132.42,132.4,9.78882769]
[1763428755620,9.06950763,132.41,132.4,9.78882769]
[1763428755820,9.06950763,132.41,132.4,0.69]
[1763428756036,9.06950763,132.41,132.39,9.78882769]
[1763428756646,9.06950763,132.41,132.39,0.69]
[1763428757239,9.06950763,132.4,132.38,9.78882769]
[1763428757434,9.06950763,132.41,132.38,9.78882769]
[1763428758254,9.06950763,132.41,132.39,0.69]
[1763428759133,9.06950763,132.41,132.38,9.78882769]
[1763428759134,9.06950763,132.4,132.38,9.78882769]
[1763428759338,0.66,132.41,132.38,9.78882769]
[1763428759655,9.06950763,132.41,132.38,0.69]
[1763428760237,18.78096,132.44,132.38,0.69]
[1763428760550,9.06950763,132.42,132.38,0.69]
[1763428760739,9.06950763,132.43,132.38,9.75950763]
[1763428760936,9.06950763,132.43,132.39,10.47882769]
[1763428761329,9.06950763,132.43,132.41,9.78882769]
[1763428761755,9.06950763,132.43,132.42,10.47882769]
[1763428761956,27.19046763,132.44,132.42,10.47882769]
[1763428762136,102.7,132.47,132.43,19.54833532]
[1763428762450,9.06950763,132.49,132.46,9.78882769]
[1763428762750,9.06950763,132.49,132.4,9.06950763]
[1763428762751,9.06950763,132.48,132.44,10.47882769]
[1763428762923,18.12096,132.49,132.44,10.47882769]
[1763428763125,18.12096,132.49,132.43,13.64950763]
[1763428763126,18.12096,132.49,132.45,9.75950763]
[1763428763323,27.19046763,132.49,132.46,9.78882769]
[1763428763523,9.06950763,132.5,132.46,19.54833532]
[1763428763965,9.06950763,132.49,132.46,9.78882769]
[1763428764468,9.06950763,132.49,132.46,10.47882769]
[1763428764844,0.66,132.48,132.44,14.36882769]
[1763428765051,9.06950763,132.47,132.44,10.47882769]
[1763428765560,18.12096,132.52,132.46,18.85833532]
[1763428765762,9.06950763,132.51,132.46,18.85833532]
[1763428765967,9.06950763,132.51,132.46,19.54833532]
[1763428766147,9.06950763,132.52,132.47,9.75950763]
[1763428766336,9.06950763,132.51,132.48,9.78882769]
[1763428766543,9.06950763,132.51,132.48,10.47882769]
[1763428766968,9.06950763,132.49,132.47,9.78882769]
[1763428767170,18.88096,132.53,132.47,0.69]
[1763428767389,9.06950763,132.5,132.47,0.69]
[1763428767665,9.06950763,132.52,132.48,9.06950763]
[1763428767979,27.29046763,132.53,132.49,9.78882769]
[1763428768147,0.1,132.53,132.51,9.78882769]
[1763428768541,0.1,132.53,132.51,10.47882769]
[1763428768961,0.1,132.53,132.52,0.69]
[1763428769279,0.1,132.53,132.5,10.47882769]
[1763428769452,0.1,132.53,132.51,15.05882769]
[1763428769773,0.1,132.53,132.52,10.47882769]
[1763428770277,9.16950763,132.53,132.48,8.89208231]
[1763428770456,9.16950763,132.53,132.49,9.78882769]
[1763428770650,9.06950763,132.5,132.49,9.78882769]
[1763428771060,9.06950763,132.5,132.49,10.47882769]
[1763428772478,9.06950763,132.5,132.49,9.78882769]
[1763428772983,9.06950763,132.51,132.47,15.05882769]
[1763428773355,9.06950763,132.51,132.49,9.78882769]
[1763428773884,9.06950763,132.5,132.47,14.36882769]
[1763428774060,18.88096,132.53,132.48,9.78882769]
[1763428774265,9.06950763,132.5,132.48,9.78882769]
[1763428774465,18.88096,132.53,132.46,8.20208231]
[1763428774466,9.06950763,132.49,132.46,8.20208231]
[1763428774666,9.06950763,132.49,132.46,9.78882769]
[1763428774909,9.06950763,132.48,132.46,9.78882769]
[1763428775463,9.06950763,132.49,132.46,9.78882769]
[1763428776087,9.06950763,132.49,132.46,10.47882769]
[1763428776382,9.06950763,132.47,132.44,8.20208231]
[1763428776559,9.06950763,132.45,132.44,9.78882769]
[1763428776759,18.12096,132.5,132.44,10.47882769]
[1763428776959,9.06950763,132.46,132.44,9.78882769]
[1763428777410,9.06950763,132.47,132.44,10.47882769]
[1763428777693,9.06950763,132.49,132.45,14.33950763]
[1763428777868,9.06950763,132.49,132.45,8.89208231]
[1763428778196,9.06950763,132.5,132.45,5.27]
[1763428778388,9.06950763,132.5,132.45,0.69]
[1763428778719,0.66,132.5,132.45,14.33950763]
[1763428778895,0.66,132.5,132.45,5.27]
[1763428778896,9.72950763,132.5,132.45,5.27]
[1763428779493,9.06950763,132.51,132.46,0.69]
[1763428779704,9.72950763,132.51,132.46,0.69]
[1763428780195,0.66,132.5,132.46,0.69]
[1763428780377,18.12096,132.52,132.47,9.78882769]
[1763428780560,0.1,132.53,132.47,23.43833532]
[1763428780561,9.16950763,132.53,132.47,23.43833532]
[1763428780768,9.16950763,132.53,132.49,9.78882769]
[1763428780974,0.1,132.53,132.49,9.78882769]
[1763428781188,9.72950763,132.52,132.47,14.36882769]
[1763428781568,9.06950763,132.52,132.49,9.78882769]
[1763428782465,9.06950763,132.52,132.48,0.69]
[1763428782890,0.1,132.53,132.49,9.78882769]
[1763428783192,9.16950763,132.53,132.49,9.78882769]
[1763428783373,9.16950763,132.53,132.49,10.46882769]
[1763428783765,0.1,132.53,132.49,10.46882769]
[1763428784776,0.1,132.53,132.5,0.68]
[1763428785286,0.1,132.53,132.51,9.78882769]
[1763428785665,0.1,132.53,132.52,0.68]
[1763428785870,0.1,132.53,132.52,10.46882769]
[1763428786174,0.1,132.53,132.51,4.56]
[1763428786888,0.1,132.53,132.51,14.34882769]
[1763428787089,0.1,132.53,132.52,10.46882769]
[1763428787490,0.1,132.53,132.52,9.78882769]
[1763428788193,0.1,132.53,132.48,8.20208231]
[1763428788367,0.78,132.53,132.48,19.53833532]
[1763428788569,9.84950763,132.53,132.48,15.02882769]
[1763428788780,9.84950763,132.53,132.48,0.68]
[1763428788979,9.74950763,132.52,132.47,14.34882769]
[1763428789197,0.68,132.52,132.48,0.68]
[1763428789378,18.22096,132.53,132.48,9.74950763]
[1763428789583,18.22096,132.53,132.49,0.68]
[1763428789584,0.1,132.53,132.49,0.68]
[1763428789997,0.1,132.53,132.49,9.74950763]
[1763428790196,0.1,132.53,132.51,9.78882769]
[1763428790697,0.1,132.53,132.51,10.46882769]
[1763428790876,0.1,132.53,132.52,10.46882769]
[1763428791076,0.1,132.53,132.52,9.78882769]
[1763428791494,0.1,132.53,132.52,10.46882769]
[1763428792199,0.1,132.53,132.5,5.24]
[1763428792508,0.1,132.53,132.5,9.78882769]
[1763428792711,0.1,132.53,132.5,10.46882769]
[1763428793073,0.1,132.53,132.5,9.78882769]
[1763428793291,0.1,132.53,132.51,0.68]
[1763428794595,0.1,132.53,132.51,5.24]
[1763428794818,0.1,132.53,132.52,9.78882769]
[1763428794988,0.1,132.53,132.52,10.46882769]
[1763428797875,0.1,132.57,132.52,27.74041763]
[1763428798182,0.1,132.57,132.56,18.85833532]
[1763428798380,0.1,132.57,132.56,23.41833532]
[1763428798577,0.1,132.57,132.56,24.09833532]
[1763428798803,0.1,132.57,132.56,20.71364549]
[1763428799505,0.1,132.57,132.56,18.67091]
[1763428799689,0.1,132.57,132.56,28.9157278]
[1763428799881,0.1,132.57,132.56,24.3557278]
[1763428800082,0.1,132.57,132.56,28.9157278]
[1763428800500,0.1,132.57,132.56,24.3557278]
[1763428800987,0.1,132.57,132.56,20.71364549]
[1763428801188,0.1,132.57,132.56,28.9157278]
[1763428801608,0.1,132.57,132.56,20.71364549]
[1763428802212,0.68,132.67,132.57,9.78882769]
[1763428802508,24.4857778,132.67,132.61,5.6848178]
[1763428802722,5.6848178,132.66,132.61,20.03364549]
[1763428802891,6.3648178,132.66,132.61,15.47364549]
[1763428803082,0.68,132.7,132.64,5.6848178]
[1763428803423,5.00836985,132.76,132.67,9.78882769]
[1763428803424,6.3648178,132.71,132.67,9.78882769]
[1763428803713,24.4857778,132.71,132.67,9.78882769]
[1763428803882,6.3648178,132.71,132.67,9.78882769]
[1763428804078,6.3648178,132.7,132.65,5.6848178]
[1763428804286,5.6848178,132.66,132.62,6.05528302]
[1763428804486,5.6848178,132.66,132.6,8.09769216]
[1763428804487,5.6848178,132.65,132.61,15.84411071]
[1763428804695,5.6848178,132.66,132.61,22.20892851]
[1763428804885,0.68,132.66,132.61,6.05528302]
[1763428805097,5.6848178,132.64,132.61,6.05528302]
[1763428805283,6.3648178,132.65,132.61,6.05528302]
[1763428806287,6.3648178,132.65,132.6,22.20892851]
[1763428806481,5.6848178,132.64,132.6,21.08411071]
[1763428806690,6.3648178,132.65,132.6,26.76892851]
[1763428807007,5.6848178,132.65,132.61,0.68]
[1763428807302,5.6848178,132.65,132.61,6.3648178]
[1763428807604,5.6848178,132.64,132.6,26.08892851]
[1763428807808,5.6848178,132.61,132.58,6.05528302]
[1763428807987,5.6848178,132.63,132.59,22.20892851]
[1763428808182,0.68,132.65,132.59,16.15364549]
[1763428808390,5.6848178,132.63,132.59,16.15364549]
[1763428808596,5.6848178,132.63,132.59,10.46882769]
[1763428808793,5.6848178,132.64,132.59,16.15364549]
[1763428809086,5.6848178,132.63,132.59,22.20892851]
[1763428809302,5.6848178,132.63,132.59,16.52411071]
[1763428809604,5.6848178,132.63,132.59,10.46882769]
[1763428809802,5.6848178,132.63,132.59,16.15364549]
[1763428810013,0.68,132.67,132.62,9.78882769]
[1763428810180,0.68,132.67,132.62,15.47364549]
[1763428810383,18.12096,132.71,132.63,10.9248178]
[1763428810600,5.6848178,132.68,132.64,15.47364549]
[1763428810782,5.6848178,132.66,132.62,20.40411071]
[1763428810991,5.6848178,132.65,132.62,14.34882769]
[1763428811408,5.6848178,132.66,132.62,10.46882769]
[1763428811718,5.6848178,132.65,132.62,9.78882769]
[1763428812331,0.69,132.67,132.62,10.49882769]
[1763428812513,5.6848178,132.66,132.62,9.78882769]
[1763428812722,5.6848178,132.66,132.62,16.18364549]
[1763428812893,6.3748178,132.66,132.62,10.49882769]
[1763428813097,5.6848178,132.65,132.62,9.78882769]
[1763428813430,5.6848178,132.64,132.6,21.12562548]
[1763428813749,5.6848178,132.65,132.6,10.49882769]
[1763428813938,5.6848178,132.63,132.6,9.78882769]
[1763428814090,5.6848178,132.62,132.59,6.06679779]
[1763428814296,5.6848178,132.6,132.57,6.06679779]
[1763428814496,5.6848178,132.58,132.56,6.06679779]
[1763428814722,5.6848178,132.58,132.54,8.09769216]
[1763428814723,5.6848178,132.57,132.55,9.78882769]
[1763428815020,5.6848178,132.57,132.54,10.49882769]
[1763428815423,23.8057778,132.55,132.52,6.06679779]
[1763428815645,18.12096,132.51,132.49,6.06679779]
[1763428815923,5.6848178,132.5,132.45,6.06679779]
[1763428816103,0.69,132.51,132.46,6.06679779]
[1763428816300,18.12096,132.49,132.44,6.77679779]
[1763428816495,23.8057778,132.48,132.43,6.26679779]
[1763428816696,18.12096,132.48,132.45,6.06679779]
[1763428816903,5.6848178,132.46,132.44,6.06679779]
[1763428817106,0.69,132.5,132.44,6.77679779]
[1763428817305,5.6848178,132.47,132.44,6.06679779]
[1763428817519,5.6848178,132.46,132.44,6.06679779]
[1763428817725,23.8057778,132.48,132.44,0.71]
[1763428818007,0.69,132.5,132.44,0.71]
[1763428818008,0.69,132.5,132.45,6.06679779]
[1763428818306,5.6848178,132.47,132.44,6.06679779]
[1763428818920,5.6848178,132.46,132.43,9.98882769]
[1763428819534,5.6848178,132.45,132.43,0.2]
[1763428819721,5.6848178,132.44,132.43,0.2]
[1763428820049,5.6848178,132.45,132.43,0.2]
[1763428820742,5.6848178,132.44,132.43,0.2]
[1763428821030,18.12096,132.48,132.44,0.7]
[1763428821234,0.71,132.54,132.47,5.6848178]
[1763428821440,5.6848178,132.52,132.47,6.3848178]
[1763428821732,5.6848178,132.52,132.47,5.6848178]
[1763428822036,6.3948178,132.52,132.47,5.6848178]
[1763428822325,7.6848178,132.58,132.47,9.78882769]
[1763428822326,6.3948178,132.51,132.47,9.78882769]
[1763428822535,5.6848178,132.5,132.46,0.7]
[1763428822720,5.6848178,132.48,132.45,9.78882769]
[1763428823033,5.6848178,132.46,132.43,9.98882769]
[1763428823243,5.6848178,132.48,132.44,6.76679779]
[1763428823863,5.6848178,132.48,132.45,9.78882769]
[1763428824021,5.6848178,132.49,132.45,16.17364549]
[1763428824220,23.8057778,132.5,132.45,21.54044328]
[1763428824532,5.6848178,132.48,132.45,9.78882769]
[1763428824728,5.6848178,132.49,132.45,10.48882769]
[1763428824955,24.5157778,132.5,132.46,9.78882769]
[1763428825127,5.6848178,132.49,132.46,9.78882769]
[1763428825522,5.6848178,132.48,132.45,10.48882769]
[1763428826923,5.6848178,132.5,132.46,16.17364549]
[1763428827739,6.3948178,132.5,132.46,9.78882769]
[1763428827946,5.6848178,132.5,132.46,10.48882769]
[1763428829554,23.8057778,132.51,132.47,0.7]
[1763428830049,18.12096,132.51,132.48,15.47364549]
[1763428830352,18.12096,132.51,132.48,9.78882769]
[1763428830353,23.8057778,132.51,132.48,9.78882769]
[1763428830559,23.8057778,132.51,132.48,10.48882769]
[1763428831339,5.6848178,132.49,132.46,6.06679779]
[1763428831548,5.6848178,132.48,132.44,6.06679779]
[1763428831853,5.6848178,132.49,132.45,9.78882769]
[1763428832153,5.6848178,132.48,132.45,9.78882769]
[1763428832343,5.6848178,132.48,132.45,10.48882769]
[1763428832867,5.6848178,132.49,132.45,9.78882769]
[1763428833032,18.12096,132.51,132.47,15.47364549]
[1763428833240,18.12096,132.51,132.48,6.3848178]
[1763428833566,5.6848178,132.52,132.48,6.3848178]
[1763428833768,18.12096,132.52,132.48,6.3848178]
[1763428834068,5.6848178,132.53,132.49,0.7]
[1763428834351,5.6848178,132.53,132.49,6.3848178]
[1763428834553,23.8057778,132.53,132.49,6.3848178]
[1763428834767,18.12096,132.53,132.5,0.7]
[1763428834949,23.8057778,132.53,132.49,6.3848178]
[1763428835137,23.8057778,132.53,132.49,0.7]
[1763428835333,5.6848178,132.54,132.5,0.7]
[1763428835534,5.6848178,132.54,132.5,6.3848178]
[1763428835767,5.6848178,132.54,132.51,9.78882769]
[1763428835940,5.6848178,132.54,132.51,10.48882769]
[1763428836263,5.6848178,132.54,132.51,9.78882769]
[1763428836829,5.6848178,132.54,132.49,16.17364549]
[1763428837033,5.6848178,132.54,132.51,9.78882769]
[1763428837230,6.3948178,132.53,132.48,9.78882769]
[1763428837434,5.6848178,132.5,132.46,15.85562548]
[1763428837657,5.6848178,132.49,132.47,9.78882769]
[1763428837854,5.6848178,132.5,132.47,9.78882769]
[1763428838236,5.6848178,132.5,132.46,6.3848178]
[1763428838752,5.6848178,132.5,132.46,5.6848178]
[1763428838956,5.6848178,132.5,132.47,0.7]
[1763428840256,5.6848178,132.51,132.47,0.7]
[1763428841253,5.6848178,132.5,132.45,16.17364549]
[1763428841452,5.6848178,132.48,132.45,9.78882769]
[1763428841654,5.6848178,132.49,132.45,10.45882769]
[1763428841863,5.6848178,132.48,132.43,12.62161559]
[1763428842051,5.6848178,132.47,132.44,10.45882769]
[1763428842374,5.6848178,132.47,132.43,0.2]
[1763428842375,5.6848178,132.45,132.43,0.2]
[1763428842752,6.3948178,132.45,132.43,0.2]
[1763428843277,5.6848178,132.47,132.44,9.78882769]
[1763428844350,5.6848178,132.47,132.44,10.45882769]
[1763428844550,23.8057778,132.48,132.44,10.45882769]
[1763428844773,23.8057778,132.48,132.43,0.2]
[1763428844774,5.6848178,132.47,132.43,0.2]
[1763428845076,5.6848178,132.47,132.44,9.78882769]
[1763428846260,5.6848178,132.46,132.43,0.2]
[1763428846455,6.3948178,132.46,132.43,0.2]
[1763428846781,5.6848178,132.45,132.43,0.2]
[1763428847579,5.6848178,132.47,132.43,0.87]
[1763428847763,5.6848178,132.47,132.43,6.5548178]
[1763428848153,23.8057778,132.47,132.43,6.5548178]
[1763428848556,5.6848178,132.46,132.43,0.87]
[1763428848768,24.5157778,132.47,132.43,0.87]
[1763428849355,18.12096,132.47,132.44,9.78882769]
[1763428849575,5.6848178,132.48,132.44,16.14364549]
[1763428849780,5.6848178,132.48,132.45,0.67]
[1763428849958,121.53096,132.5,132.45,0.67]
[1763428850165,5.6848178,132.49,132.45,0.67]
[1763428853083,5.6848178,132.48,132.45,0.67]
[1763428853285,5.6848178,132.48,132.43,0.2]
[1763428853286,5.6848178,132.46,132.43,0.2]
[1763428853485,5.6848178,132.44,132.43,0.2]
[1763428853659,29.4905956,132.44,132.43,0.2]
[1763428853872,12.0796356,132.44,132.37,6.06679779]
[1763428854071,5.6848178,132.4,132.38,0.67]
[1763428854279,5.6848178,132.42,132.39,6.06679779]
[1763428854494,5.6848178,132.4,132.38,0.67]
[1763428854882,18.12096,132.41,132.38,0.67]
[1763428854883,23.8057778,132.41,132.38,0.67]
[1763428855280,5.6848178,132.44,132.39,21.54044328]
[1763428855593,0.64,132.49,132.41,9.78882769]
[1763428855788,0.64,132.49,132.41,15.85562548]
[1763428855789,5.6848178,132.45,132.41,15.85562548]
[1763428855988,5.6848178,132.45,132.42,0.67]
[1763428857298,5.6848178,132.44,132.42,0.67]
[1763428857477,5.6848178,132.44,132.42,6.73679779]
[1763428857794,5.6848178,132.45,132.42,6.73679779]
[1763428857995,5.6848178,132.43,132.42,6.06679779]
[1763428858194,18.12096,132.42,132.41,6.06679779]
[1763428858408,18.12096,132.41,132.39,6.06679779]
[1763428858586,18.12096,132.41,132.37,8.09769216]
[1763428858587,18.12096,132.38,132.37,6.06679779]
[1763428858793,5.6848178,132.38,132.36,6.06679779]
[1763428859112,23.8057778,132.37,132.36,6.06679779]
[1763428859472,23.8057778,132.37,132.35,8.09769216]
[1763428859907,18.12096,132.37,132.36,0.67]
[1763428860113,18.12096,132.37,132.35,8.76769216]
[1763428860397,18.12096,132.41,132.36,12.81653824]
[1763428860575,18.12096,132.41,132.4,6.1505455]
[1763428860777,27.20116496,132.41,132.4,6.1505455]
[1763428861176,18.76096,132.47,132.4,6.8205455]
[1763428861415,9.08020496,132.43,132.41,6.1505455]
[1763428861719,18.12096,132.44,132.41,6.1505455]
[1763428861720,9.08020496,132.42,132.41,6.1505455]
[1763428862313,9.08020496,132.42,132.4,6.1505455]
[1763428863920,9.08020496,132.41,132.4,6.1505455]
[1763428864224,9.72020496,132.41,132.4,6.1505455]
[1763428864617,9.72020496,132.41,132.38,8.20072733]
[1763428864618,9.72020496,132.41,132.38,6.1505455]
[1763428864919,9.08020496,132.4,132.38,6.1505455]
[1763428865219,9.08020496,132.4,132.39,6.1505455]
[1763428865591,9.72020496,132.4,132.39,6.1505455]
[1763428865793,18.12096,132.38,132.37,6.1505455]
[1763428865996,18.12096,132.38,132.35,8.20072733]
[1763428865997,27.20116496,132.38,132.35,6.1505455]
[1763428866211,9.08020496,132.36,132.34,6.1505455]
[1763428866408,9.08020496,132.35,132.33,6.3505455]
[1763428866722,9.08020496,132.34,132.33,0.2]
[1763428867096,9.72020496,132.34,132.33,0.2]
[1763428867328,9.08020496,132.34,132.33,0.2]
[1763428867494,9.72020496,132.34,132.33,0.2]
[1763428868691,0.64,132.34,132.33,0.2]
[1763428868933,9.08020496,132.34,132.33,0.2]
[1763428869155,27.84116496,132.34,132.33,0.2]
[1763428869322,27.20116496,132.34,132.33,0.2]
[1763428869720,9.72020496,132.34,132.33,0.2]
[1763428870020,9.08020496,132.34,132.33,0.2]
[1763428870441,9.08020496,132.35,132.33,0.2]
[1763428870657,0.64,132.42,132.33,19.73903265]
[1763428870957,18.12096,132.37,132.34,9.08020496]
[1763428871120,9.08020496,132.38,132.34,9.75020496]
[1763428871652,18.76096,132.37,132.33,9.98882769]
[1763428871857,9.08020496,132.36,132.33,9.98882769]
[1763428872739,9.08020496,132.36,132.33,0.88]
[1763428872950,9.08020496,132.36,132.33,0.2]
[1763428874236,18.12096,132.36,132.33,0.88]
[1763428874418,18.76096,132.4,132.35,18.86903265]
[1763428874419,9.08020496,132.4,132.35,18.86903265]
[1763428874617,9.08020496,132.4,132.37,9.78882769]
[1763428875543,9.08020496,132.41,132.37,9.78882769]
[1763428875727,9.08020496,132.39,132.35,9.78882769]
[1763428876044,27.20116496,132.39,132.35,9.78882769]
[1763428876232,27.20116496,132.39,132.35,19.54903265]
[1763428876545,18.12096,132.39,132.36,0.68]
[1763428877028,27.20116496,132.39,132.35,9.78882769]
[1763428877220,9.08020496,132.38,132.35,9.78882769]
[1763428877421,27.20116496,132.39,132.35,10.46882769]
[1763428877643,27.20116496,132.39,132.36,0.68]
[1763428877846,27.20116496,132.39,132.35,10.46882769]
[1763428878228,18.12096,132.39,132.35,9.08020496]
[1763428878530,18.12096,132.39,132.35,0.68]
[1763428878531,27.20116496,132.39,132.35,0.68]
[1763428879330,9.08020496,132.38,132.34,9.78882769]
[1763428879548,9.08020496,132.38,132.34,18.86903265]
[1763428879855,9.08020496,132.38,132.34,19.54903265]
[1763428880039,9.08020496,132.37,132.34,10.46882769]
[1763428880227,27.20116496,132.39,132.35,0.68]
[1763428880428,9.08020496,132.37,132.34,0.68]
[1763428880627,9.08020496,132.37,132.34,10.46882769]
[1763428880824,18.12096,132.39,132.34,10.46882769]
[1763428881027,18.12096,132.39,132.35,0.65]
[1763428881247,27.20116496,132.39,132.35,0.65]
[1763428881454,18.12096,132.39,132.35,0.65]
[1763428881668,27.20116496,132.39,132.35,0.65]
[1763428881947,18.12096,132.39,132.35,9.73020496]
[1763428882123,27.20116496,132.39,132.35,0.65]
[1763428882326,18.12096,132.37,132.35,9.78882769]
[1763428883255,9.72020496,132.39,132.35,9.78882769]
[1763428883460,9.08020496,132.39,132.35,9.78882769]
[1763428883753,27.20116496,132.4,132.36,9.78882769]
[1763428884059,27.20116496,132.4,132.37,0.65]
[1763428884424,27.20116496,132.4,132.36,15.93937319]
[1763428884425,27.84116496,132.4,132.36,15.93937319]
[1763428884630,18.12096,132.37,132.36,9.78882769]
[1763428885241,9.72020496,132.4,132.36,9.78882769]
[1763428885543,9.72020496,132.4,132.36,15.93937319]
[1763428886352,18.12096,132.37,132.36,9.78882769]
[1763428887360,9.72020496,132.4,132.36,15.93937319]
[1763428888042,18.12096,132.37,132.36,15.93937319]
[1763428888356,18.12096,132.37,132.36,16.58937319]
[1763428889274,18.12096,132.37,132.36,15.93937319]
[1763428889563,9.08020496,132.37,132.33,7.0005455]
[1763428889851,9.08020496,132.37,132.34,6.1505455]
[1763428890054,9.08020496,132.37,132.33,7.0005455]
[1763428890247,27.84116496,132.36,132.33,6.3505455]
[1763428890436,18.12096,132.34,132.33,6.3505455]
[1763428891339,27.20116496,132.34,132.33,0.2]
[1763428891531,9.72020496,132.34,132.33,0.2]
[1763428891744,9.08020496,132.34,132.33,0.2]
[1763428892349,9.72020496,132.34,132.33,0.2]
[1763428892557,9.08020496,132.34,132.33,0.2]
[1763428892733,18.12096,132.37,132.33,6.3505455]
[1763428893041,9.08020496,132.35,132.33,0.2]
[1763428893450,9.08020496,132.34,132.33,0.2]
[1763428894033,9.08020496,132.35,132.33,0.2]
[1763428894440,6.1505455,132.39,132.34,0.65]
[1763428894642,9.08020496,132.35,132.34,6.1505455]
[1763428894865,9.08020496,132.35,132.33,6.3505455]
[1763428895050,9.08020496,132.34,132.33,0.2]
[1763428895233,9.08020496,132.34,132.33,6.35261594]
[1763428895435,9.08020496,132.34,132.33,0.2]
[1763428897470,9.08020496,132.34,132.33,6.35261594]
[1763428898062,27.20116496,132.34,132.33,6.35261594]
[1763428898232,27.20116496,132.34,132.33,0.2]
[1763428898430,27.20116496,132.34,132.33,6.35261594]
[1763428898768,27.20116496,132.34,132.33,7.00261594]
[1763428899064,27.20116496,132.34,132.33,0.85]
[1763428899257,9.08020496,132.35,132.33,0.85]
[1763428899456,9.08020496,132.35,132.34,6.16654002]
[1763428900374,9.08020496,132.35,132.34,6.81654002]
[1763428901466,9.08020496,132.35,132.34,0.65]
[1763428901664,9.08020496,132.35,132.33,8.40072733]
[1763428901968,9.08020496,132.34,132.33,0.85]
[1763428902645,9.08020496,132.34,132.33,6.373338]
[1763428902945,9.08020496,132.34,132.33,0.2]
[1763428903362,9.72020496,132.34,132.33,0.2]
[1763428903671,27.20116496,132.34,132.33,0.2]
[1763428904052,18.12096,132.34,132.33,7.023338]
[1763428904361,18.12096,132.34,132.33,9.05072733]
[1763428904362,27.20116496,132.34,132.33,9.05072733]
[1763428904543,27.20116496,132.34,132.33,0.85]
[1763428905062,18.12096,132.34,132.33,18.83955502]
[1763428905372,9.08020496,132.36,132.33,18.83955502]
[1763428905543,27.20116496,132.36,132.35,6.17023105]
[1763428905737,27.20116496,132.36,132.34,8.85072733]
[1763428905938,18.12096,132.36,132.34,8.85072733]
[1763428906160,27.20116496,132.36,132.35,0.65]
[1763428906441,27.20116496,132.36,132.35,6.17052474]
[1763428906656,27.20116496,132.36,132.34,6.17052474]
[1763428906657,9.72020496,132.36,132.34,6.17052474]
[1763428906861,9.08020496,132.35,132.33,6.37052474]
[1763428907042,27.20116496,132.34,132.33,6.37052474]
[1763428907256,18.12096,132.34,132.33,0.2]